bitfinex-derivatives/quotes_ETHF0:USTF0_20251003
["timestamp","ask_amount","ask_price","bid_price","bid_amount"]
[1759490435973,0.32960221,4475.8,4475.7,36.24845]
[1759490436172,0.32960221,4475.8,4475.7,37.44815035]
[1759490440177,0.32960221,4475.8,4475.7,36.24845]
[1759490440377,0.32960221,4475.8,4475.7,37.44718455]
[1759490440578,0.00180221,4475.8,4475.7,36.24845]
[1759490440981,0.00180221,4475.8,4475.7,37.44722489]
[1759490441182,0.00180221,4475.8,4475.7,36.24845]
[1759490441477,0.00180221,4475.8,4475.7,37.44716115]
[1759490441878,0.00180221,4475.8,4475.7,36.24845]
[1759490442081,0.00180221,4475.8,4475.7,37.44716115]
[1759490442480,0.32960221,4475.8,4475.7,37.44716115]
[1759490444584,0.0223,4476.4,4476.3,0.7447]
[1759490444785,0.0223,4476.4,4476.3,0.9717]
[1759490445088,0.546,4476.8,4476.7,0.7447]
[1759490445385,0.546,4476.8,4476.7,1.37346]
[1759490445685,0.54803019,4476.8,4476.7,1.37524987]
[1759490447281,0.54803019,4476.8,4476.7,0.74648987]
[1759490447479,0.75973019,4476.8,4476.7,0.45208987]
[1759490449185,0.75973019,4476.8,4476.7,0.97348987]
[1759490450187,0.00203019,4476.8,4476.7,0.97348987]
[1759490450375,0.00203019,4476.8,4476.7,41.77348987]
[1759490451481,0.00203019,4476.8,4476.7,42.97234199]
[1759490451682,0.00203019,4476.8,4476.7,41.77348987]
[1759490452385,0.00203019,4476.8,4476.7,42.97234199]
[1759490454584,0.00203019,4476.8,4476.7,42.74534199]
[1759490454785,5.75223019,4476.8,4476.7,0.00178987]
[1759490454989,0.559,4476.0,4475.9,1.60068212]
[1759490455291,0.8788,4476.0,4475.9,0.62883]
[1759490455479,0.8788,4476.0,4475.9,2.04478212]
[1759490456080,0.8788,4476.0,4475.9,2.25387675]
[1759490457193,0.8788,4476.0,4475.9,1.05502463]
[1759490457894,0.3198,4476.0,4475.9,1.36412463]
[1759490458090,0.3198,4476.4,4476.3,0.40179]
[1759490458291,0.3198,4476.4,4476.3,2.5631002]
[1759490458489,0.5367,4476.4,4476.3,2.5631002]
[1759490459398,0.3198,4476.4,4476.3,5.7709002]
[1759490459597,0.53873019,4476.8,4476.7,0.82536]
[1759490459797,0.75223019,4476.8,4476.7,0.9597]
[1759490460096,0.75223019,4476.8,4476.7,0.6506]
[1759490462595,0.8731,4476.5,4476.4,1.40811852]
[1759490462794,0.8731,4476.5,4476.4,1.63511852]
[1759490462994,0.8731,4476.5,4476.4,1.42961852]
[1759490463397,0.8731,4476.5,4476.4,0.227]
[1759490464609,1.27487,4476.5,4476.4,0.227]
[1759490465202,1.27487,4476.5,4476.4,0.40178]
[1759490465411,1.27487,4476.5,4476.4,0.62878]
[1759490466106,1.27487,4476.5,4476.4,0.4325]
[1759490470109,1.27487,4476.5,4476.4,0.2055]
[1759490470308,1.27487,4476.5,4476.4,0.4315]
[1759490471408,1.27487,4476.5,4476.4,0.2055]
[1759490471609,1.27487,4476.5,4476.4,0.4315]
[1759490474313,1.27487,4476.5,4476.4,0.83328]
[1759490475215,1.27487,4476.5,4476.4,0.4315]
[1759490475514,1.27487,4476.5,4476.4,0.83328]
[1759490476516,1.27487,4476.5,4476.4,0.60728]
[1759490476713,1.27487,4476.5,4476.4,0.83328]
[1759490476919,0.8731,4476.5,4476.4,0.83328]
[1759490478216,0.7478,4476.2,4476.1,0.4018]
[1759490478415,0.7478,4476.2,4476.1,0.6278]
[1759490479018,0.7478,4476.2,4476.1,0.8333]
[1759490483425,0.7478,4476.2,4476.1,0.4315]
[1759490483624,0.7478,4476.2,4476.1,0.83331]
[1759490484224,0.7478,4476.2,4476.1,2.9471101]
[1759490484426,0.7478,4476.2,4476.1,1.34701]
[1759490484722,0.46363019,4476.8,4476.7,0.2055]
[1759490484923,0.46363019,4476.8,4476.7,0.9452]
[1759490485124,0.84308019,4476.8,4476.7,0.6348]
[1759490485325,1.15158019,4476.8,4476.7,0.6348]
[1759490485514,1.15158019,4476.8,4476.7,0.4315]
[1759490486429,0.74983019,4476.8,4476.7,0.4315]
[1759490486726,0.74983019,4476.8,4476.7,0.83326]
[1759490487626,0.74983019,4476.8,4476.7,1.03656]
[1759490488823,0.74983019,4476.8,4476.7,1.36486]
[1759490490826,1.15158019,4476.8,4476.7,0.6348]
[1759490491329,1.15158019,4476.8,4476.7,0.4315]
[1759490491531,0.92629,4476.3,4476.2,1.60717623]
[1759490491731,0.8551,4476.0,4475.9,1.60977086]
[1759490492032,1.25692,4476.0,4475.9,1.83577086]
[1759490493131,1.25692,4476.0,4475.9,0.22859463]
[1759490494436,0.8551,4476.0,4475.9,0.63042463]
[1759490497143,0.8551,4476.0,4475.9,0.22859463]
[1759490497332,0.8551,4476.0,4475.9,0.83742463]
[1759490497526,0.8551,4476.0,4475.9,1.05982463]
[1759490497731,0.8551,4476.0,4475.9,1.38242463]
[1759490501632,0.8551,4476.0,4475.9,1.05982463]
[1759490502436,0.8551,4476.0,4475.9,1.38242463]
[1759490503934,0.3063,4476.0,4475.9,1.38242463]
[1759490504440,0.5154,4476.0,4475.9,1.38242463]
[1759490505035,0.6444,4476.0,4475.9,1.38242463]
[1759490505237,0.8524,4476.0,4475.9,1.38242463]
[1759490505740,0.8524,4476.0,4475.9,1.15642463]
[1759490505935,0.8524,4476.0,4475.9,0.83382463]
[1759490506136,0.8524,4476.0,4475.9,1.05982463]
[1759490508343,0.8524,4476.0,4475.9,0.83382463]
[1759490508640,0.8524,4476.0,4475.9,1.05982463]
[1759490508945,4.0579,4476.5,4476.4,0.83118]
[1759490509247,4.93024071,4476.5,4476.4,1.05718]
[1759490509438,4.52847071,4476.5,4476.4,1.05718]
[1759490509749,4.52847071,4476.5,4476.4,1.37978]
[1759490510148,4.0579,4476.5,4476.4,1.37978]
[1759490511846,4.0579,4476.5,4476.4,1.05718]
[1759490512448,4.0579,4476.5,4476.4,1.37068]
[1759490513239,4.0579,4476.5,4476.4,0.433]
[1759490513441,4.45967,4476.5,4476.4,0.433]
[1759490513745,0.7429,4476.3,4476.2,0.4018]
[1759490513942,0.7429,4476.3,4476.1,36.05238216]
[1759490513943,0.4018,4476.2,4476.1,1.20438216]
[1759490514145,1.14471,4476.1,4476.0,0.40181]
[1759490514440,0.92921,4476.1,4476.0,0.62301]
[1759490514639,0.7429,4476.1,4476.0,2.57919216]
[1759490514842,0.5262,4476.1,4476.0,1.37481]
[1759490515043,0.3107,4476.1,4476.0,1.37481]
[1759490517451,0.0223,4476.3,4476.2,1.1488]
[1759490517653,0.0223,4476.3,4476.2,1.3748]
[1759490517951,0.0223,4476.3,4476.2,2.98197623]
[1759490518550,0.3107,4476.5,4476.4,1.14878]
[1759490518748,0.3107,4476.5,4476.4,1.37478]
[1759490519454,0.5262,4476.5,4476.4,1.37478]
[1759490520051,0.6506,4476.5,4476.4,1.37478]
[1759490520353,0.8673,4476.5,4476.4,1.37478]
[1759490523353,0.8673,4476.5,4476.4,1.06128]
[1759490523548,0.0223,4476.7,4476.6,0.40176]
[1759490523755,0.5502,4476.7,4476.6,1.37006]
[1759490524659,0.5279,4476.7,4476.6,1.37006]
[1759490524855,0.3066,4476.7,4476.6,1.37006]
[1759490527567,0.00203019,4476.8,4476.7,1.14406]
[1759490529373,0.00203019,4476.8,4476.7,41.94406]
[1759490531371,0.00024032,4476.8,4476.7,41.94406]
[1759490532368,0.0223,4477.0,4476.9,1.14404]
[1759490532568,0.0223,4477.0,4476.9,1.37004]
[1759490532768,0.3066,4477.6,4477.5,1.14398]
[1759490533064,0.3066,4477.6,4477.5,1.36998]
[1759490533370,0.30932791,4477.6,4477.5,2.57147118]
[1759490533767,0.53062791,4477.6,4477.5,2.57147118]
[1759490534465,0.00272791,4477.6,4477.5,2.57147118]
[1759490534667,0.022,4477.9,4477.8,0.7423]
[1759490534965,0.5499,4477.9,4477.8,1.36996]
[1759490535164,0.3286,4477.9,4477.8,1.14396]
[1759490535370,0.3286,4477.9,4477.8,36.21096]
[1759490535570,0.33100359,4477.9,4477.8,36.21096]
[1759490535975,0.02440359,4477.9,4477.8,36.21096]
[1759490537667,0.02440359,4477.9,4477.8,37.4109274]
[1759490538274,0.02440359,4477.9,4477.8,36.21096]
[1759490538770,0.33100359,4477.9,4477.8,36.21096]
[1759490539171,0.33100359,4477.9,4477.8,37.4109274]
[1759490539374,0.33100359,4477.9,4477.8,36.21096]
[1759490540772,0.02440359,4477.9,4477.8,36.21096]
[1759490542581,0.02440359,4477.9,4477.8,39.41876]
[1759490542882,0.02440359,4477.9,4477.8,40.6187274]
[1759490544884,0.02440359,4477.9,4477.8,39.41876]
[1759490547182,0.02440359,4477.9,4477.8,80.21876]
[1759490550582,0.02440359,4477.9,4477.8,3.2078]
[1759490550583,1.16215359,4477.9,4477.8,3.2078]
[1759490550783,0.7361,4477.6,4477.5,1.20012439]
[1759490550988,0.8696,4477.5,4477.4,1.20012439]
[1759490551284,0.40171,4477.2,4477.0,1.20012439]
[1759490551595,0.5346,4476.8,4476.7,35.23476]
[1759490551982,0.5346,4476.8,4476.7,35.46076]
[1759490553391,0.5346,4476.8,4476.7,35.79596]
[1759490561695,0.5346,4476.8,4476.7,36.99749383]
[1759490565498,0.3147,4476.8,4476.7,36.99749383]
[1759490565699,0.3502,4477.0,4476.9,1.15484]
[1759490565897,0.3502,4477.0,4476.9,1.38084]
[1759490566099,0.3279,4477.0,4476.9,1.38084]
[1759490566400,0.5324,4477.0,4476.9,1.38084]
[1759490566793,3.5357,4477.1,4477.0,1.15483]
[1759490567598,3.7402,4477.1,4477.0,1.15483]
[1759490567801,0.5324,4477.1,4477.0,2.35636383]
[1759490568100,0.3279,4477.1,4477.0,2.35636383]
[1759490568999,0.5324,4477.1,4477.0,2.35636383]
[1759490571394,0.7434,4477.1,4477.0,2.35622475]
[1759490571702,0.7434,4477.1,4477.0,2.55872475]
[1759490573901,0.7434,4477.1,4477.0,2.33272475]
[1759490574103,0.7434,4477.1,4477.0,2.24702475]
[1759490574407,0.7434,4477.1,4477.0,1.04563]
[1759490574603,0.7434,4477.1,4477.0,1.35733]
[1759490576106,1.14512,4477.1,4477.0,1.35733]
[1759490576607,0.7434,4477.1,4477.0,1.35733]
[1759490577105,1.14512,4477.1,4477.0,1.35733]
[1759490577508,1.14512,4477.1,4477.0,0.9556]
[1759490578009,0.7434,4477.1,4477.0,1.35733]
[1759490578905,0.5324,4477.1,4477.0,1.35733]
[1759490579106,0.3279,4477.1,4477.0,1.35733]
[1759490579307,0.5384,4477.1,4477.0,1.35733]
[1759490581308,0.5384,4477.1,4477.0,2.95974244]
[1759490581808,0.7601,4477.1,4477.0,2.95974244]
[1759490582813,0.3409,4477.3,4477.2,1.16681]
[1759490583014,0.3409,4477.3,4477.2,1.39281]
[1759490583215,0.7333,4477.3,4477.2,1.39281]
[1759490583413,1.135,4477.3,4477.2,1.39281]
[1759490583618,1.135,4477.3,4477.2,1.06161]
[1759490584121,0.7333,4477.3,4477.2,1.39281]
[1759490584318,0.3186,4477.3,4477.2,1.39281]
[1759490585515,0.522,4477.3,4477.2,1.39281]
[1759490585716,3.7298,4477.7,4477.6,1.16677]
[1759490585918,3.7298,4477.7,4477.6,1.39277]
[1759490586310,3.9411,4477.7,4477.6,1.16677]
[1759490586514,0.7333,4477.7,4477.6,1.39277]
[1759490590223,0.3186,4477.7,4477.6,1.39277]
[1759490590611,0.34300359,4477.9,4477.8,0.83556]
[1759490590915,0.34300359,4477.9,4477.8,1.39276]
[1759490591115,0.54640359,4477.9,4477.8,1.39276]
[1759490592223,0.02440359,4477.9,4477.8,1.39276]
[1759490592819,0.34300359,4477.9,4477.8,1.39276]
[1759490593522,0.02440359,4477.9,4477.8,1.39276]
[1759490594313,0.02440359,4477.9,4477.8,9.60056]
[1759490595424,0.02440359,4477.9,4477.8,50.40056]
[1759490595721,0.02440359,4477.9,4477.8,50.17456]
[1759490595923,0.02440359,4477.9,4477.8,85.23756]
[1759490597825,0.0223,4478.1,4478.0,1.23704]
[1759490598025,0.0223,4478.1,4478.0,1.46304]
[1759490598328,0.522,4478.5,4478.4,1.1667]
[1759490598518,0.522,4478.5,4478.4,1.3927]
[1759490598718,0.5246619,4478.5,4478.4,1.3927]
[1759490599315,0.0026619,4478.5,4478.4,1.3927]
[1759490602228,0.0026619,4478.5,4478.4,2.59387376]
[1759490602725,0.0026619,4478.5,4478.4,6.56869246]
[1759490606120,0.0026619,4478.5,4478.4,6.34269246]
[1759490606324,0.0026619,4478.5,4478.4,41.39869246]
[1759490607729,0.0026619,4478.5,4478.4,38.0007376]
[1759490608334,0.0026619,4478.5,4478.4,78.8007376]
[1759490608532,0.0223,4478.7,4478.6,1.14029]
[1759490608731,0.3256,4479.7,4479.2,0.4362]
[1759490608933,0.5338,4479.7,4479.6,1.1402]
[1759490609231,0.7526,4479.7,4479.6,1.3662]
[1759490609535,0.75524232,4479.7,4479.6,1.36843406]
[1759490610132,0.00264232,4479.7,4479.6,4.57623406]
[1759490610433,0.00264232,4479.7,4479.6,39.40323406]
[1759490610635,0.00264232,4479.7,4479.6,80.20323406]
[1759490613836,0.00264232,4479.7,4479.6,80.20023406]
[1759490614236,0.30984232,4479.7,4479.6,80.20023406]
[1759490614438,0.00264232,4479.7,4479.6,80.20023406]
[1759490617244,0.00264232,4479.7,4479.6,45.15023406]
[1759490617446,0.30984232,4479.7,4479.6,80.19723406]
[1759490617942,0.00264232,4479.7,4479.6,80.19723406]
[1759490619138,0.00264232,4479.7,4479.6,3.43343406]
[1759490619139,0.75154232,4479.7,4479.6,3.43343406]
[1759490619345,0.75154232,4479.7,4479.6,0.22823406]
[1759490619346,5.75154232,4479.7,4479.6,0.22823406]
[1759490620446,5.75154232,4479.7,4479.6,0.62973406]
[1759490621146,5.75154232,4479.7,4479.6,0.84123406]
[1759490621645,0.30984232,4479.7,4479.6,1.36073406]
[1759490622036,0.52894232,4479.7,4479.6,1.36073406]
[1759490622941,0.75154232,4479.7,4479.6,1.36073406]
[1759490623148,0.75154232,4479.7,4479.6,1.05343406]
[1759490623446,0.75154232,4479.7,4479.6,1.36073406]
[1759490623847,0.00264232,4479.7,4479.6,4.56853406]
[1759490624546,0.00264232,4479.7,4479.6,6.1705792]
[1759490624746,0.00264232,4479.7,4479.6,4.56853406]
[1759490626049,0.75154232,4479.7,4479.6,0.00223406]
[1759490626249,0.75154232,4479.7,4479.6,0.22823406]
[1759490626650,5.75154232,4479.7,4479.6,0.00223406]
[1759490626846,5.75154232,4479.7,4479.6,0.22823406]
[1759490627158,5.75154232,4479.7,4479.6,0.00223406]
[1759490627452,5.75154232,4479.7,4479.6,0.22823406]
[1759490628148,0.75154232,4479.7,4479.6,2.15894066]
[1759490628547,0.75154232,4479.7,4479.6,1.85164066]
[1759490628948,0.75154232,4479.7,4479.6,0.65193406]
[1759490629245,0.75154232,4479.7,4479.6,1.85164066]
[1759490629753,0.75154232,4479.7,4479.6,0.21373406]
[1759490629956,0.75154232,4479.7,4479.6,0.43973406]
[1759490630946,0.75154232,4479.7,4479.6,0.96163406]
[1759490631142,0.52894232,4479.7,4479.6,0.96163406]
[1759490631353,0.00264232,4479.7,4479.6,0.96163406]
[1759490631554,0.53184232,4479.7,4479.6,0.96163406]
[1759490633956,0.75444232,4479.7,4479.6,0.96163406]
[1759490634358,0.75444232,4479.7,4479.6,2.2539792]
[1759490634554,0.75444232,4479.7,4479.6,0.65193406]
[1759490634950,0.75444232,4479.7,4479.6,2.5636792]
[1759490635753,0.53184232,4479.7,4479.6,2.5636792]
[1759490635953,0.00264232,4479.7,4479.6,0.96163406]
[1759490638860,0.00264232,4479.7,4479.6,41.76163406]
[1759490639059,0.00264232,4479.7,4479.6,43.76764764]
[1759490639751,0.00264232,4479.7,4479.6,41.76163406]
[1759490640860,0.00264232,4479.7,4479.6,46.76163406]
[1759490641760,0.3469,4480.4,4480.3,0.40143]
[1759490641963,0.0223,4480.4,4480.3,4.57193]
[1759490642172,0.3141,4480.8,4480.7,0.8226]
[1759490642467,0.3141,4480.8,4480.7,1.3641]
[1759490642668,0.3141,4480.8,4480.7,42.1641]
[1759490642868,0.31692415,4480.8,4480.7,42.1641]
[1759490643264,0.00282415,4480.8,4480.7,42.1641]
[1759490644765,0.31692415,4480.8,4480.7,42.1641]
[1759490644969,0.31692415,4480.8,4480.7,41.8486]
[1759490645172,0.31692415,4480.8,4480.7,41.6226]
[1759490645470,0.31692415,4480.8,4480.7,76.6626]
[1759490645672,0.31692415,4480.8,4480.7,78.26381226]
[1759490645866,0.31692415,4480.8,4480.7,78.57931226]
[1759490646267,0.31692415,4480.8,4480.7,37.77889208]
[1759490647478,0.536,4481.3,4481.2,1.13805]
[1759490647679,0.536,4481.3,4481.2,4.57185]
[1759490648170,0.536,4481.3,4481.2,5.77158345]
[1759490648367,0.53877497,4481.3,4481.2,5.77158849]
[1759490648570,0.53877497,4481.3,4481.2,4.57185]
[1759490648768,0.53877497,4481.3,4481.2,5.77158681]
[1759490649580,0.76257497,4481.3,4481.2,5.77158681]
[1759490649781,0.76257497,4481.3,4481.2,5.95101125]
[1759490650265,0.76257497,4481.3,4481.2,4.75127444]
[1759490650672,0.76257497,4481.3,4481.2,5.95101125]
[1759490652381,0.76257497,4481.3,4481.2,4.75127444]
[1759490652679,0.53877497,4481.3,4481.2,4.75127444]
[1759490653480,0.53877497,4481.3,4481.2,4.57185]
[1759490656580,0.53877497,4481.3,4481.2,5.77158681]
[1759490656581,0.00277497,4481.3,4481.2,5.77158681]
[1759490656880,0.00277497,4481.3,4481.2,4.57185]
[1759490657884,0.4457,4483.4,4483.3,0.82236]
[1759490658073,0.2219,4483.4,4483.3,0.9627]
[1759490658478,0.4457,4483.4,4483.3,0.226]
[1759490658682,0.44764067,4483.4,4483.3,0.22866954]
[1759490659382,0.44764067,4483.4,4483.3,0.43496954]
[1759490659784,0.22384067,4483.4,4483.3,0.96536954]
[1759490660681,0.00194067,4483.4,4483.3,4.17316954]
[1759490662490,0.5566,4484.2,4484.1,0.7367]
[1759490662780,0.7804,4484.2,4484.1,0.9627]
[1759490663174,0.0206,4484.2,4484.1,0.9627]
[1759490663382,0.55873938,4484.2,4484.1,0.7367]
[1759490663683,0.76193938,4484.2,4484.1,0.226]
[1759490663980,0.7598,4483.7,4483.6,0.40114]
[1759490664182,0.7598,4483.7,4483.6,0.62714]
[1759490664386,0.7598,4483.7,4483.6,0.226]
[1759490664787,0.7598,4483.7,4483.6,0.4323]
[1759490665285,0.7598,4483.7,4483.6,0.7478]
[1759490665480,0.7598,4483.7,4483.6,0.9627]
[1759490667189,0.3141,4483.7,4483.6,0.9627]
[1759490667376,0.2105,4483.8,4483.7,0.4333]
[1759490667583,0.2105,4483.8,4483.7,0.7443]
[1759490667780,0.5444,4483.8,4483.7,0.7443]
[1759490668181,0.5444,4483.8,4483.7,1.14543]
[1759490668588,0.2105,4483.8,4483.7,1.14543]
[1759490669495,0.5444,4483.8,4483.7,1.14543]
[1759490669691,0.2105,4483.8,4483.7,1.14543]
[1759490669886,0.747,4484.1,4484.0,0.9281]
[1759490670092,0.747,4484.1,4484.0,1.1554]
[1759490670488,0.3339,4485.8,4485.4,0.40097]
[1759490670690,0.747,4485.8,4485.7,0.5283]
[1759490671393,0.74939639,4485.8,4485.7,0.5283]
[1759490671589,0.54679639,4485.8,4485.7,0.7443]
[1759490671892,0.00239639,4485.8,4485.7,0.7443]
[1759490674082,0.2088,4486.3,4486.2,0.8223]
[1759490674295,0.5399,4486.3,4486.2,1.3788]
[1759490674585,0.231,4486.5,4486.4,0.7509]
[1759490674992,0.5621,4486.5,4486.4,0.7509]
[1759490675188,0.56475969,4486.5,4486.4,0.7509]
[1759490675389,0.78685969,4486.5,4486.4,0.7509]
[1759490677096,0.76465969,4486.5,4486.4,0.7509]
[1759490678287,0.00265969,4486.5,4486.4,0.7509]
[1759490679190,0.89655969,4486.5,4486.2,0.227]
[1759490679695,0.762,4485.8,4485.7,0.2138]
[1759490679896,0.762,4485.8,4485.7,0.227]
[1759490680896,8.9698,4485.8,4485.7,0.227]
[1759490682290,3.9698,4485.8,4485.7,0.227]
[1759490682496,0.8176,4485.0,4484.9,3.2078]
[1759490682798,0.8176,4485.0,4484.9,3.4348]
[1759490683186,0.8176,4485.0,4484.9,0.227]
[1759490684293,5.8176,4485.0,4484.9,0.227]
[1759490686398,0.762,4485.0,4484.9,0.7703]
[1759490686699,0.2088,4485.0,4484.9,0.9779]
[1759490686899,0.762,4485.0,4484.9,0.9779]
[1759490687694,0.2221,4485.0,4484.9,0.9779]
[1759490687900,0.762,4485.1,4485.0,0.5433]
[1759490688697,0.4865,4485.0,4484.9,0.227]
[1759490688896,0.8176,4485.0,4484.9,0.227]
[1759490691204,5.8176,4485.0,4484.7,0.227]
[1759490691400,0.8176,4485.0,4484.7,0.227]
[1759490691598,3.6271,4484.8,4484.7,0.227]
[1759490691798,3.9397,4484.8,4484.7,0.227]
[1759490692301,4.39736557,4484.8,4484.7,0.227]
[1759490693602,4.39736557,4484.8,4484.0,0.4011]
[1759490693809,0.7319,4484.2,4484.1,1.14949]
[1759490695400,0.7319,4484.2,4484.1,1.35749]
[1759490695899,0.4193,4484.2,4484.1,1.35749]
[1759490696601,0.2132,4484.2,4484.1,1.35749]
[1759490697106,0.7319,4484.2,4484.1,0.9564]
[1759490697303,0.7319,4484.2,4484.1,0.7304]
[1759490697502,0.7319,4484.2,4484.1,0.7484]
[1759490698104,0.7319,4484.2,4484.1,1.35749]
[1759490698305,0.7319,4484.2,4484.1,0.9564]
[1759490698808,0.2132,4484.2,4484.1,0.9564]
[1759490699003,0.2132,4484.2,4484.1,1.35749]
[1759490699698,3.2078,4484.3,4484.2,0.3093]
[1759490699904,3.2078,4484.3,4484.2,0.7304]
[1759490700400,3.2078,4485.3,4485.2,0.7304]
[1759490700594,0.2132,4485.6,4485.5,0.1302]
[1759490700800,0.2132,4485.6,4485.5,0.5513]
[1759490701001,3.2078,4485.9,4485.5,0.5513]
[1759490701202,0.2132,4485.7,4485.6,0.7304]
[1759490702001,0.4193,4485.7,4485.6,0.7304]
[1759490702201,0.7546,4485.7,4485.6,0.7304]
[1759490702607,0.4193,4485.7,4485.6,0.7304]
[1759490705411,0.227,4486.9,4486.3,0.7497]
[1759490705412,3.4134,4486.4,4486.3,0.7497]
[1759490705611,3.9516,4486.4,4486.3,0.9757]
[1759490705808,3.9516,4486.4,4486.3,0.7579]
[1759490707214,3.9516,4486.4,4486.3,0.5319]
[1759490707417,3.9516,4486.4,4486.3,0.7579]
[1759490708012,3.9516,4486.4,4486.3,0.226]
[1759490708615,3.9516,4486.4,4486.2,0.226]
[1759490710813,0.7438,4486.3,4486.2,0.226]
[1759490712815,0.7438,4486.3,4486.2,0.7579]
[1759490713617,0.7438,4486.3,4486.2,0.9757]
[1759490716010,3.2078,4486.4,4486.2,1.05021]
[1759490716307,3.4134,4486.4,4486.3,0.7497]
[1759490716710,3.9516,4486.4,4486.2,0.226]
[1759490717122,3.9516,4486.4,4485.9,0.40093]
[1759490717309,3.9516,4486.4,4486.0,0.5524]
[1759490717508,0.3353,4486.3,4486.0,0.95332]
[1759490717713,3.6163,4486.4,4486.0,0.95332]
[1759490717714,0.7438,4486.1,4486.0,1.15882]
[1759490721518,0.7438,4486.1,4486.0,1.37662]
[1759490722024,0.7438,4486.1,4486.0,1.50712]
[1759490722820,0.7438,4486.1,4486.0,1.1062]
[1759490723520,0.7438,4486.1,4486.0,0.5524]
[1759490723921,0.7438,4486.1,4486.0,1.50712]
[1759490724519,0.4085,4486.1,4486.0,1.50712]
[1759490725521,0.4085,4486.1,4486.0,1.1062]
[1759490725730,0.23045969,4486.5,4486.4,0.4233]
[1759490726029,0.74645969,4486.5,4486.4,0.7497]
[1759490726417,3.95425969,4486.5,4486.4,0.7497]
[1759490726624,3.95425969,4486.5,4486.4,0.9757]
[1759490726823,3.95425969,4486.5,4486.4,0.7497]
[1759490727019,3.95425969,4486.5,4486.4,0.9602]
[1759490727328,3.93445969,4486.5,4486.4,0.5319]
[1759490727522,4.06325969,4486.5,4486.0,1.32486934]
[1759490727727,4.06325969,4486.5,4486.4,0.226]
[1759490728022,3.93445969,4486.5,4486.4,0.7671]
[1759490728223,3.93445969,4486.5,4486.4,0.9694]
[1759490728727,3.61895969,4486.5,4486.4,0.9694]
[1759490732731,3.94225969,4486.5,4486.4,0.9694]
[1759490734730,3.74855969,4486.5,4486.3,1.19436934]
[1759490734932,3.74855969,4486.5,4485.4,1.00243]
[1759490734933,0.734,4486.3,4486.2,1.19436934]
[1759490735234,0.734,4485.9,4485.8,1.19436934]
[1759490735835,0.734,4485.9,4485.7,1.42036934]
[1759490736030,0.734,4485.8,4485.7,1.42869189]
[1759490736838,0.2082,4485.8,4485.7,0.9531]
[1759490737138,0.2082,4485.8,4485.7,1.35405]
[1759490737539,0.4107,4485.8,4485.7,0.9531]
[1759490737741,0.734,4485.8,4485.7,0.9531]
[1759490738642,0.734,4485.8,4485.7,1.35405]
[1759490738834,0.4107,4485.8,4485.7,0.9531]
[1759490739036,3.2078,4486.0,4485.9,0.7271]
[1759490739235,3.66753732,4486.0,4485.9,1.12803]
[1759490739446,3.87573732,4486.0,4485.9,1.12803]
[1759490739741,3.87573732,4486.0,4485.9,0.7271]
[1759490741445,4.07823732,4486.0,4485.9,0.7271]
[1759490741745,4.40153732,4486.0,4485.9,0.7271]
[1759490742640,4.40153732,4486.0,4485.9,0.5099]
[1759490742840,4.53113732,4486.0,4485.9,0.226]
[1759490743035,4.53113732,4486.0,4485.9,0.5303]
[1759490743242,4.40153732,4486.0,4485.9,0.5303]
[1759490743443,4.40153732,4486.0,4485.9,0.5099]
[1759490743642,4.40153732,4486.0,4485.9,0.7359]
[1759490744039,4.40153732,4486.0,4485.9,0.226]
[1759490744246,0.734,4485.6,4485.5,1.20242967]
[1759490744438,0.734,4485.6,4485.5,0.5303]
[1759490744634,0.734,4485.6,4485.5,0.7359]
[1759490745444,0.734,4485.6,4485.5,1.0754]
[1759490745747,3.6185,4486.0,4485.9,0.7271]
[1759490745947,4.4016306,4486.0,4485.9,0.7271]
[1759490746543,4.4016306,4486.0,4485.9,0.5099]
[1759490746846,4.5312306,4486.0,4485.9,0.226]
[1759490747747,4.0714,4486.0,4485.9,0.226]
[1759490751444,0.7176,4485.8,4485.6,1.20242967]
[1759490751644,0.7176,4485.8,4485.7,0.226]
[1759490752250,0.7176,4485.8,4485.6,1.20242967]
[1759490752443,0.3062,4485.7,4485.6,1.20242967]
[1759490752646,0.7176,4485.7,4485.6,0.226]
[1759490752844,0.3062,4485.6,4485.4,1.53462967]
[1759490753050,0.7176,4485.5,4485.4,1.53462967]
[1759490753247,3.9254,4485.5,4485.4,1.53462967]
[1759490753446,3.9254,4485.5,4485.4,1.76062967]
[1759490753646,3.9254,4485.5,4485.4,1.96422967]
[1759490755050,3.9254,4485.5,4485.4,1.76062967]
[1759490755243,3.9254,4485.5,4485.4,0.226]
[1759490755450,3.9254,4485.5,4485.4,0.5582]
[1759490755953,0.7176,4485.5,4485.4,1.76062967]
[1759490756149,0.7176,4485.5,4485.4,1.96422967]
[1759490756642,3.9254,4485.5,4485.4,0.7618]
[1759490757353,3.9254,4485.5,4485.4,1.96422967]
[1759490757555,3.9254,4485.5,4485.4,0.7618]
[1759490757753,3.9254,4485.5,4485.4,1.96422967]
[1759490760555,3.9254,4485.5,4485.4,1.73822967]
[1759490760758,3.9254,4485.5,4485.4,1.96422967]
[1759490762859,3.9254,4485.5,4485.4,0.7618]
[1759490764155,3.9254,4485.5,4485.4,1.96422372]
[1759490764356,3.9254,4485.5,4485.4,0.7618]
[1759490764858,3.9254,4485.5,4485.4,0.5358]
[1759490765059,4.0761,4485.5,4485.4,1.42874475]
[1759490765250,3.9464,4485.5,4485.4,1.42874475]
[1759490765451,4.0761,4485.5,4485.4,1.42869471]
[1759490765650,4.0761,4485.5,4485.4,1.20269471]
[1759490765851,4.53571369,4485.5,4485.2,1.20269471]
[1759490766050,0.7531,4485.1,4485.0,1.42869471]
[1759490766359,0.7531,4485.1,4485.0,0.226]
[1759490767863,0.7531,4485.1,4485.0,1.96309471]
[1759490768162,0.2159,4485.4,4485.3,0.7393]
[1759490768462,3.2078,4485.5,4485.4,0.7393]
[1759490768961,3.4237,4485.5,4485.4,0.7393]
[1759490769961,0.2159,4485.5,4485.4,0.7393]
[1759490770562,3.4237,4485.5,4485.4,0.7393]